Workbook

Sheet Identificação
B1: UNIVERSIDADE FEDERAL DE ALAGOAS – UFAL SECRETARIA EXECUTIVA DOS CONSELHOS SUPERIORES - SECS
B3: PLANO DE ATIVIDADES ACADÊMICAS - PAA
B4: (RCO nº 119/2025 - CONSUNI/UFAL)
B6: ATENÇÃO!
B7: Ao baixar este arquivo você deve ter percebido uma mensagem inicial informando:
B8: Clique no botão para poder preencher os campos editáveis da planilha. Surge outra mensagem informando:
B9: O arquivo é confiável! Esse bloqueio é automático visando a proteção por envio via internet de macros indesejáveis que possam introduzir virus em seu computador. Para desbloquear as macros contidas neste arquivo anote as instruções a seguir pois terá que fechar o arquivo para fazer o desbloqueio das macros. Seguem as instruções...
B10: 1. Feche este arquivo. Ele deve ter sido baixado na pasta "Download" do seu computador.
B11: 2. Abra a pasta onde está o arquivo "Modelo Formulário PAA (RCO 119-2025).xlsm". Provavelmente na pasta "Download"...
B12: 3. Clique com o botão direito do mouse no arquivo "Modelo Formulário PAA (RCO 119-2025).xlsm".
B13: 4. Selecione "Propriedades" na cortina que surgiu.
B14: 5. Na parte inferior, no último item, marque "Desbloquear"...
B16: 6. Pronto! Seu arquivo está pronto para o preenchimento. Se quiser, pode salvar em outra pasta (diretório) onde deseje armazenar seu formulário de PAA. Na última planilha, denominada "Resumo", você encontrará as instruções para impressão.
B18: INSTRUÇÕES GERAIS PARA PREENCHIMENTO DO PLANO DE ATIVIDADES ACADÊMICAS
B19: 1. Este formulário de Plano de Atividades Acadêmicas (PAA) deve ser utilizado por todos os docentes, independentemente da Classe em que se encontre: Classe A (Professor/a Assistente), Classe B (Professor/a Adjunto/a), Classe C (Professor/a Associado/a) ou mesmo na Classe D (Professor/a Titular). O Plano servirá de base para as avaliações de desempenho dos docentes, mas também para o gerenciamento e acompanhamento das atividades a serem desenvolvidas nas UAs e Campi;
B20: 2. O PAA é anual e deve ser preenchido pelo docente interessado usando, exclusivamente, o Excel. O uso de outros programas ocasionará erros;
B21: 3. Só estão disponíveis para preenchimento os campos editáveis. Alguns são preenchidos automaticamente, evitando-se possíveis erros. Alterne sequencialmente pelos campos subsequentes usando a tecla "Tab", ou pelos campos anteriores usando simultaneamente as teclas "Shift" + "Tab". Para alternar para qualquer planilha, clique no nome da planilha que está na parte inferior desta planilha, tais sejam: 1. ENSINO; 2. PRODUÇÃO INTELECTUAL; 3. PESQUISA; 4. EXTENSÃO; 5. GESTÃO; ou RESUMO;
B22: 4. Inicie o preenchimento indicando, nos campos abaixo dessas instruções, os dados de identificação do docente (nome; SIAPE; titulação; regime de trabalho; lotação; início de exercício; posicionamento na carreira; etc.) e, na sequência, os afastamentos previstos para o período ou que já estejam em curso. Segue o preenchimento das atividades acadêmicas a serem desenvolvidas pelo docente nas demais planilhas deste arquivo (pasta de trabalho);
B23: 5. O Docente deve definir o período do PAA em função, a princípio, da data de início do exercício na UFAL, considerada como data base dos interstícios para fins de progressão ou promoção docente. Portanto, deve-se considerar, para cada Plano, sucessivos períodos de 1 ano a partir da data base. Só será necessário definir a data de início do período. Será sempre considerado um período de 1 ano para cada PAA;
B24: 6. Após o devido preenchimento, o docente deve encaminhar o PAA à Secretaria da sua Unidade Acadêmica/Campus até o 30º (trigésimo) dia antes de iniciado o semestre letivo correspondente, para aprovação pelo Conselho da Unidade/Campus;
B25: 7. No caso de alteração ou acréscimo de atividades no PAA referentes a algum semestre letivo planejado, o docente deve refazer seu Plano e enviar o novo PAA à Unidade Acadêmica/Campus, até o 30º (trigésimo) dia após iniciado o semestre letivo correspondente, para aprovação pelo Conselho da Unidade/Campus, em substituição ao Plano original.
AJ28: Titulação | AL28: Regime de trabalho | AN28: Classe | AP28: Nível
B29: IDENTIFICAÇÃO DO DOCENTE
B30: Nome: | H30: Matrícula SIAPE: | AJ30: Doutorado | AL30: 20 h | AN30: Classe A | AP30: 1
B31: E-mail: | H31: Telefone/Celular: | AJ31: Mestrado | AL31: 40 h | AN31: Classe B | AP31: 2
B32: Titulação atual: | H32: Regime de trabalho: | AJ32: Especialização | AL32: DE | AN32: Classe C | AP32: 3
B33: Lotação: | H33: Entrada em exercício: | AJ33: Graduação | AN33: Classe D | AP33: 4
B34: Classe e nível atual: | E34: =_xlfn.IFS(D34="","",D34="Classe A","Professor(a) Assistente",D34="Classe B","Professor(a) Adjunto(a)",D34="Classe C","Professor(a) Associado(a)",D34="Classe D","Professor(a) Titular") ->  | H34: Nível: | J34: =IF(I34="","",IF(AND(D34=AN30,I34=1),"",IF(AND(D34=AN33,I34=1),"",IF(OR(D34=AN31,D34=AN32),"","Nível errado!")))) -> 
B35: Período a que se refere este PAA: | G35: a | H35: =IF(E35="","",EDATE(E35,12)-1) -> 
B38: AFASTAMENTOS PREVISTOS OU EM CURSO
B39: Natureza:
B40: Período:
B41: Portaria (se houver):
B43: Natureza:
B44: Período:
B45: Portaria (se houver):
B47: Natureza:
B48: Período:
B49: Portaria (se houver):

Sheet 1. ENSINO
B1: UNIVERSIDADE FEDERAL DE ALAGOAS – UFAL SECRETARIA EXECUTIVA DOS CONSELHOS SUPERIORES - SECS
B5: INSTRUÇÕES PARA PREENCHIMENTO DAS ATIVIDADES DE ENSINO
B6: 1º. No item 1.1, logo após essas instruções, registre as informações referentes às atividades de ministração de aulas na graduação (item 1.1.1) ou na pós-graduação (item 1.1.2), conforme a seguir:
B7: a) Ano-Período no formato AAAA-P (ano com 4 dígitos e período com 1 dígito, separados por um hífen (Ex.: 2026-1). Período P=1 ou 2, para 1º ou 2º semestre, respectivamente (Períodos de férias são indicados como sendo do período anterior). Cuidado com esta informação! Ela será usada para o cálculo da carga horária efetiva semanal média do docente.
B8: b) Informe, nos campos correspondentes, código, nome, turma e a carga horária total de cada componente curricular (disciplina ou módulo) que irá lecionar em cada período letivo contido no ciclo avaliativo em questão, tanto na graduação como na pós-graduação.
B9: c) Caso a disciplina/módulo seja compartilhada com outro ou outros docentes, informe a carga horária que lhe será atribuída na coluna "CH efetiva do docente".
B10: d) Caso o componente curricular tenha carga horária total diferente daquela definida para o docente (Estágio Supervisionado Obrigatório, por exemplo), informe, na coluna "CH efetiva do docente", a carga horária que compete ao docente conforme definido no PPC do Curso de graduação ou no Regimento do Curso de pós-graduação.
B11: e) Na coluna "Duração da aula (minutos)" informe o valor 50 para componente curricular tipo Disciplina ou 50 ou 60, para a atividade didática de outros tipos de componentes curriculares, conforme a duração em minutos definida para esses componentes, em conformidade com as resoluções RCO nº 114/2023-CONSUNI/UFAL (Regulamento da Graduação), RCO nº 82/2025-CONSUNI/UFAL (Regulamento da Pós-Graduação Lato sensu), ou RCO nº 37/2022-CONSUNI/UFAL (Regulamento da Pós-Graduação stricto sensu).
B12: f) O campo "CH equivalente semanal" é calculado automaticamente pela planilha eletrônica.
B14: 2º. Os campos " Carga horária efetiva semanal média - CHESM do docente prevista para o período" e "Pontuação total prevista correspondente à atividade de ministração de aulas no período" também são calculados automaticamente, sendo este último campo calculado em conformidade com o barema ou Tabela de Pontuação anexa à RCO nº 119/2025-CONSUNI/UFAL.
B15: 3º. No item 1.1.3 o docente deve informar a carga horária semanal que irá disponibilizar para preparação de aulas, correção de atividades avaliativas, etc., como também para atendimento a alunos fora do horário das disciplinas. Salienta-se que a UFAL destina uma semana no início de cada período letivo para as atividades de planejamento das disciplinas. Considerando 40 horas de atividades de planejamento para todo o semestre letivo, tem-se 40/18 horas semanais relativas ao planejamento distribuídas ao longo do semestre, limitando o item referente ao planejamento das disciplinas a 2,22 h. Sugere-se um valor igual a 2 h semanais para as atividades de planejamento e também para atendimento a alunos fora do horário das disciplinas. Esses valores podem ser alterados pelo docente.
B17: 4º. Para as atividades de "Orientações de alunos", "Participações em bancas" e "Atividades de formação continuada", o docente deve informar a quantidade e a carga horária semanal previstas para cada item. A planilha executará automaticamente os cálculos correspondentes para obtenção dos totais.
B18: 5º. Salienta-se que a carga horária semanal total , calculada pela soma das cargas horárias semanais a serem dedicadas às diversas atividades previstas pelo docente não só para ensino, mas também para produção intelectual, pesquisa, extensão e/ou gestão e representação, deve totalizar a mesma carga horária dfinida pelo Regime de Trabalho do docente (20 horas; 40 horas ou DE).
B20: A última planilha, denominada "RESUMO", apresenta os totais das pontuações previstas para o período avaliativo bem como a carga horária semanal total do docente, permitindo que sejam efetuados os devidos ajustes nas planilhas anteriores para que a carga horária semanal total corresponda exatamente ao Regime de Trabalho do docente. O QUADRO-RESUMO desta planilha não é editável! Ele resume todas as informações definidas pelo docente nas planilhas anteriores. A planilha é utilizada também para as assinaturas do docente e da Presidência do Conselho da UA/Campus, quando da aprovação do PAA. | W20: =IF(B28="","",VALUE(LEFT(B28,4)&","&RIGHT(B28,1))) ->  | X20: =IF(SUM(W20:W53)=0,"",COUNTA(_xlfn.UNIQUE(_xlfn._xlws.FILTER(W20:W53,W20:W53<>"")))) -> 
W21: =IF(B29="","",VALUE(LEFT(B29,4)&","&RIGHT(B29,1))) -> 
B23: 1. ATIVIDADES DE ENSINO
B24: 1.1 Ministração de aulas em componentes curriculares
B25: 1.1.1 Graduação
B26: Ano-Período | C26: Componente curricular (Disciplinas ou módulos) | G26: CH efetiva do docente | H26: Duração da aula (minutos) | I26: CH equivalente Semanal
C27: Código | D27: Nome | E27: Turma | F27: CH total
I28: =IF(H28="","",G28*H28/50/18) -> 
I29: =IF(H29="","",G29*H29/50/18) -> 
I32: =IF(H32="","",G32*H32/50/18) -> 
W39: =IF(B47="","",VALUE(LEFT(B47,4)&","&RIGHT(B47,1))) -> 
I42: =IF(H42="","",G42*H42/50/18) -> 
B44: 1.1.2 Pós-Graduação
B45: Ano-Período | C45: Componente curricular | G45: CH efetiva do docente | H45: Duração da aula (minutos) | I45: CH equivalente Semanal
C46: Código | D46: Nome | E46: Turma | F46: CH total
I47: =IF(H47="","",G47*H47/50/18) -> 
B63: Carga horária efetiva semanal média - CHESM do docente prevista para o período: | I63: =IF(X20="","",1/X20*SUM(I28:I42,I47:I61)) -> 
B64: Pontuação total prevista correspondente à atividade de ministração de aulas no período: | I64: =IF(I63="","",IF(Identificação!J32=" 20 horas",I63*0.8,I63*0.6)) -> 
B66: 1.1 3 Atividades complementares de ensino | I66: CH semanal do docente
B67: a) Preparação de aulas, correção de atividades avaliativas, etc. | I67: 2
B68: b) Atendimento a alunos fora do horário das disciplinas | I68: 2
B70: Carga horária efetiva semanal total do docente em atividade didática prevista para o interstício: | I70: =IF(I63="","",SUM(I63,I67:I68)) -> 
B72: 1.2 Orientações e outras atividades de ensino
B73: Descrição da atividade | F73: Pontuação (RCO nº 119/2025) | G73: Quantidade prevista | H73: Pontuação prevista | I73: CH semanal do docente
B74: 1. Orientações de alunos de graduação
B75: a) TCC | F75: 2 | H75: =IF(G75="","",F75*G75) -> 
B76: b) Monitoria | F76: 2 | H76: =IF(G76="","",F76*G76) -> 
B77: c) Estágio curricular (inclusive docência, residência, etc.) | F77: 2
B78: Outra: | H78: =IF(G78="","",F78*G78) -> 
B80: 2. Orientação de alunos de pós-graduação | F80: Pontuação (RCO nº 119/2025) | G80: Quantidade prevista | H80: Pontuação prevista | I80: CH semanal do docente
B81: a) Monografia de especialização | F81: 2.4 | H81: =IF(G81="","",F81*G81) -> 
B82: b) Dissertação | F82: 4 | H82: =IF(G82="","",F82*G82) -> 
B83: c) Tese | F83: 8
B84: d) Estágio docência | F84: 2
B85: e) Estágio pós-doutoral | F85: 8
B86: Outra: | H86: =IF(G86="","",F86*G86) -> 
B88: 3. Co-orientação de alunos de graduação ou de pós-graduação | F88: Pontuação (RCO nº 119/2025) | G88: Quantidade prevista | H88: Pontuação prevista | I88: CH semanal do docente
B89: a) TCC | F89: 1.2 | H89: =IF(G89="","",F89*G89) -> 
B90: b) Monografia de especialização | F90: 1.5 | H90: =IF(G90="","",F90*G90) -> 
B91: c) Dissertação | F91: 2.4 | H91: =IF(G91="","",F91*G91) -> 
B92: d) Tese | F92: 4.8
B94: 4. Participação em banca | F94: Pontuação (RCO nº 119/2025) | G94: Quantidade prevista | H94: Pontuação prevista | I94: CH semanal do docente
B95: a) de trabalhos de conclusão ou seleção em cursos de graduação/ PET/ PIBIC/ PIBID/extensão | F95: 0.5 | H95: =IF(G95="","",F95*G95) -> 
B96: b) de seleção em curso lato sensu, residências pedagógicas ou em saúde | F96: 0.7
B97: c) de qualificação ou defesa de Mestrado | F97: 1
B98: d) de qualificação ou defesa de Doutorado | F98: 2
B99: Outra: | H99: =IF(G99="","",F99*G99) -> 
B101: 5. Atividades de formação continuada (Participação em ações formativas do Proford ou programas afins | F101: Pontuação (RCO nº 119/2025) | G101: Quantidade prevista | H101: Pontuação prevista | I101: CH semanal do docente
B102: a) como cursista | F102: 3 | H102: =IF(G102="","",F102*G102) -> 
B103: b) como formador | F103: 1
B104: c) como tutor | F104: 1 | H104: =IF(G104="","",F104*G104) -> 
B107: RESUMO DAS ATIVIDADES DE ENSINO | G107: Carga Horária Semanal Prevista | I107: Pontuação Prevista
B108: 1.1 Ministração de aulas na graduação e na pós-graduação, inclusive planejamento e atendimento a alunosfora do horário das disciplinas | G108: =IF(I70="","",I70) ->  | I108: =I64 -> 
B109: 1.2 Orientações e outras atividades de ensino | G109: =IF(SUM(I75:I104)=0,"",SUM(I75:I104)) ->  | I109: =IF(SUM(H75:H104)=0,"",SUM(H75:H104)) -> 
B110: TOTAIS: | G110: =IF(SUM(G108:H109)=0,"",SUM(G108:H109)) ->  | I110: =IF(SUM(I108:I109)=0,"",SUM(I108:I109)) -> 

Sheet 2. PRODUÇÃO INTELECTUAL
A1: 2. PRODUÇÃO INTELECTUAL
A2: Tipo de produção | B2: Pontuação (RCO nº 119/2025) | C2: Quantidade prevista | D2: Pontuação prevista | E2: CH semanal do docente
A3: 1. Livro com ISBN e corpo editorial na área de atuação do docente e Unidade Acadêmica ou em outras editoras de qualidade validada pela Unidade Acadêmica e comissão de progressão/promoção | B3: 8 | D3: =IF(C3="","",B3*C3) -> 
A4: 2. Capítulo de livro (até dois) com ISBN e corpo editorial na área de atuação do docente e Unidade Acadêmica ou em outras editoras de qualidade validada pela Unidade e comissão de progressão/promoção | B4: 2 | D4: =IF(C4="","",B4*C4) -> 
A5: 3. Edição ou organização de livros | B5: 4
A6: 4. Tradução de livros relacionadas com a atividade acadêmica exercida pelo Docente | B6: 4
A7: 5. Tradução de capítulos de livro relacionada com a atividade acadêmica exercida pelo Docente | B7: 1.3
A8: 6. Prefácio ou apresentação de livros | B8: 1.3
A9: 7. Artigo em periódicos indexados (com ISSN) | B9: 6
A10: 8. Artigo completo em anais de congressos, simpósios, seminários e similares com comissão editorial | B10: 4
A11: 9. Artigo de divulgação científica, tecnológica ou artística | B11: 3
A12: 10. Resumo em anais de congressos, simpósios, seminários, encontros, semanas e similares | B12: 1.5
A13: 11. Produção técnica registrada na UFAL | B13: 2
A14: 12. Publicações técnicas editadas por instituições oficiais de ensino, pesquisa e extensão | B14: 2
A15: 13. Entrevista acadêmica/científica | B15: 4.8
A16: 14. Criação, direção e divulgação de obras artísticas | B16: 6
A17: 15. Confecção ou desenvolvimento de produtos/técnicas | B17: 6
A18: 16. Confecção ou desenvolvimento de material didático instrucional, exceto notas de aula | B18: 6 | D18: =IF(C18="","",B18*C18) -> 
A19: 17. Patente | B19: 3
A20: 18. Prêmios | B20: 2
A21: 19. Títulos | B21: 1
A22: Outras produções:
B23: 0.5 | D23: =IF(C23="","",B23*C23) -> 
B24: 0.5
B25: 0.5
B26: 0.5
B27: 0.5
A29: PONTUAÇÃO TOTAL PREVISTA E CH SEMANAL DO DOCENTE EM ATIVIDADES DE PRODUÇÃO INTELECTUAL: | D29: =IF(SUM(D3:D27)=0,"",SUM(D3:D27)) -> 
A31: INSTRUÇÕES PARA PREENCHIMENTO DAS ATIVIDADES DE PRODUÇÃO INTELECTUAL
A32: Obs.: Defina, para cada item, a quantidade prevista e a carga horária semanal que pretende dedicar para execução da atividade.
A33: Caso pretenda realizar alguma atividade de produção intelectual que não esteja relacionada, acrescente nas linhas referentes a "Outras produções", salientando-se que esta(s) atividade(s) não constantes da relação deverão ser devidamente aprovadas pela Comissão Interna e homologada(s) pelo Conselho da Unidade/Campus.

Sheet 3. PESQUISA
A1: 3. ATIVIDADES DE PESQUISA
A2: Atividade | B2: Pontuação (RCO nº 119/2025) | C2: Quantidade prevista | D2: Pontuação prevista | E2: CH semanal do docente
A3: 1. Coordenação de programa de pesquisa ou desenvolvimento tecnológico | B3: 6 | D3: =IF(C3="","",B3*C3) -> 
A4: 2. Coordenação de projeto de pesquisa ou desenvolvimento tecnológico | B4: 5 | D4: =IF(C4="","",B4*C4) -> 
A5: 3. Participação em programa/projeto de pesquisa ou desenvolvimento tecnológico | B5: 5 | D5: =IF(C5="","",B5*C5) -> 
A6: 4. Coordenação ou participação em Grupo de Pesquisa | B6: 2
A7: 5. Participação em eventos científicos, profissionais ou artísticos com apresentação de trabalhos | B7: 2
A8: 6. Participação em eventos científicos, profissionais ou artísticos como conferencista, palestrante, debatedor ou mediador | B8: 2
A9: 7. Coordenação de eventos científicos, profissionais, artísticos ou culturais | B9: 3.5
A10: 8. Participação em eventos científicos, profissionais, artísticos ou culturais e mesas redondas | B10: 2.5
A11: 9. Organização de eventos científicos, profissionais, artísticos, culturais e mesas redondas | B11: 1.8
A12: 10. Coordenação individual de ciclo de palestras ou de estudos e de oficinas | B12: 2
A13: 11. Coordenação coletiva de ciclo de palestras ou de estudos e de oficinas | B13: 1
A14: 12. Prestação de serviços e assistência técnica, não remunerados | B14: 1.5
A15: 13. Editoração de artigos em periódicos ou revistas (Qualis A ou similar) | B15: 4
A16: 14. Editoração de artigos em periódicos ou revistas (Qualis B ou similar) | B16: 2
A17: 15. Avaliação de artigos em periódicos ou revistas (Qualis A ou similar) | B17: 2
A18: 16. Avaliação de artigos em periódicos ou revistas (Qualis B ou similar) | B18: 1
A19: 17. Avaliação de resumos para eventos nacionais ou locais | B19: 1
A20: Outras atividades de pesquisa:
B21: 0.5
B22: 0.5
B23: 0.5
B24: 0.5
B25: 0.5
A27: PONTUAÇÃO TOTAL PREVISTA E CH SEMANAL DO DOCENTE EM ATIVIDADES DE PESQUISA: | D27: =IF(SUM(D3:D25)=0,"",SUM(D3:D25)) ->  | E27: =IF(SUM(E3:E25)=0,"",SUM(E3:E25)) -> 
A29: INSTRUÇÕES PARA PREENCHIMENTO DAS ATIVIDADES DE PESQUISA
A30: Obs.: Defina, para cada item a quantidade prevista e a carga horária semanal que pretende dedicar para sua execução.
A31: Caso pretenda realizar alguma atividade de pesquisa que não esteja relacionada, acrescente nas linhas referentes a "Outras atividades de pesquisa", salientando-se que esta(s) atividade(s) não constantes da relação deverão ser devidamente aprovadas pela Comissão Interna e homologada(s) pelo Conselho da Unidade/Campus.

Sheet 4. EXTENSÃO
A1: 4. ATIVIDADES DE EXTENSÃO
A2: Atividade | B2: Pontuação (RCO nº 119/2025) | C2: Quantidade prevista | D2: Pontuação prevista | E2: CH semanal do docente
A3: 1. Coordenação de programa de extensão | B3: 6 | D3: =IF(C3="","",B3*C3) -> 
A4: 2. Coordenação de projeto de extensão | B4: 5 | D4: =IF(C4="","",B4*C4) -> 
A5: 3. Participação em programa/projeto de extensão | B5: 4 | D5: =IF(C5="","",B5*C5) -> 
A6: 4. Aulas ministradas em cursos de extensão e/ou treinamento | B6: 0.05
A7: 5. Participação artística ou técnica na apresentação, atuação e produção de concertos, programas de rádio ou televisão | B7: 0.25
A8: 6. Participação em eventos científicos, profissionais ou artísticos com apresentação de trabalhos | B8: 2
A9: 7. Participação em eventos científicos, profissionais ou artísticos sem apresentação de trabalhos | B9: 0.8 | D9: =IF(C9="","",B9*C9) -> 
A10: 8. Participação em eventos científicos, profissionais ou artísticos como conferencista, palestrante, debatedor ou mediador | B10: 2
A11: 9. Coordenação de eventos científicos, profissionais, artísticos ou culturais | B11: 3.5
A12: 10. Participação em eventos científicos, profissionais, artísticos ou culturais e mesas redondas | B12: 2.5
A13: 11. Organização de eventos científicos, profissionais, artísticos, culturais e mesas redondas | B13: 1.8
A14: 12. Coordenação individual de ciclo de palestras ou de estudos e de oficinas | B14: 2
A15: 13. Coordenação coletiva de ciclo de palestras ou de estudos e de oficinas | B15: 1
A16: 14. Prestação de serviços e assistência técnica, não remunerados | B16: 1.5
A17: 15. Participação em atividades de divulgação científica | B17: 1.8
A18: Outras atividades de extensão:
B19: 0.5
B20: 0.5
B21: 0.5
B22: 0.5
B23: 0.5
A25: PONTUAÇÃO TOTAL PREVISTA E CH SEMANAL DO DOCENTE EM ATIVIDADES DE EXTENSÃO: . | D25: =IF(SUM(D3:D23)=0,"",SUM(D3:D23)) -> 
A27: INSTRUÇÕES PARA PREENCHIMENTO DAS ATIVIDADES DE EXTENSÃO
A28: Obs.: Defina, para cada item a quantidade prevista e a carga horária semanal que pretende dedicar para sua execução.
A29: Caso pretenda realizar alguma atividade de extensão que não esteja relacionada, acrescente nas linhas referentes a "Outras atividades de extensão", salientando-se que esta(s) atividade(s) não constantes da relação deverão ser devidamente aprovadas pela Comissão Interna e homologada(s) pelo Conselho da Unidade/Campus.

Sheet 5. GESTÃO
A1: 5. ATIVIDADES DE GESTÃO, REPRESENTAÇÃO E OUTRAS ATIVIDADES ADMINISTRATIVAS
A2: Função desempenhada | B2: Portaria (se houver) | C2: Tempo (meses) durante o período | D2: Pontuação (RCO nº 119/2025) | E2: Pontuação prevista | F2: CH semanal prevista
A3: 1. Titular da Reitoria e Vice-Reitoria | D3: =5/6 -> 0.8333333333 | E3: =IF(C3="","",C3*D3) -> 
A4: 2. Titular de Pró-Reitoria, Direção do HUPPA ou de Superintendência | D4: =4/6 -> 0.6666666667 | E4: =IF(C4="","",C4*D4) -> 
A5: 3. Titular de Direção de Campus Fora de Sede ou do Hospital Veterinário | D5: =3.5/6 -> 0.5833333333
A6: 4. Titular de Direção de Unidade Acadêmica ou de Coordenadoria de Pró-Reitoria e outras funções “CD” | D6: =3/6 -> 0.5
A7: 5. Titular de Vice-Diretoria de Unidade Acadêmica ou de Direção da Editora Universitária | D7: =2.5/6 -> 0.4166666667
A8: 6. Coordenação de Curso de Graduação e Pós-Graduação, de Presidência da CPPD, de Gerência e outras funções “FG” | D8: =2.5/6 -> 0.4166666667
A9: 7. Coordenação de Pesquisa, de Extensão ou de Monitoria de Unidade ou Campus fora de sede, vice-coordenação de cursos e de programa de Pós-Graduação e coordenação de Programas de residência | D9: =2/6 -> 0.3333333333
A10: 8. Coordenação de convênios institucionais; ou de Programa de Educação Tutorial (PET) e similares | D10: =2.5/6 -> 0.4166666667
A11: 9. Coordenação de estágios supervisionados de cursos de graduação | D11: =2/6 -> 0.3333333333
A12: 10. Coordenação de Setores de Estudos, Laboratórios, Núcleos e Órgãos de Apoio e outras estruturas administrativas e de Comitês de Ética Institucionais. | D12: =2/6 -> 0.3333333333
A13: 11. Representação em Órgãos Colegiados | D13: =1.5/6 -> 0.25
A14: 12. Representação sindical e representação da UFAL junto a órgãos colegiados externos | D14: =1.5/6 -> 0.25
A15: 13. Membro de diretoria de entidade nacional científica vinculada à área de atuação do docente | D15: =1/6 -> 0.1666666667
A16: 14. Participação em Comissões, Comitês, Grupos de Trabalho, Conselhos Técnicos, Científicos, Culturais e Profissionais, Fóruns, como membro efetivo | D16: =1.2/6 -> 0.2
A17: 15. Participação em comissão de avaliação de progressão/promoção de Docente ou de estágio probatório | D17: =1/6 -> 0.1666666667
A18: 16. Participação em comissões especiais de interesse institucional | D18: =3/6 -> 0.5
A19: 17. Participação em programa de formação continuada como mentor ou coordenador | D19: =1/6 -> 0.1666666667
A20: 18. Participação em banca de concurso p/ docente efetivo | D20: =3/6 -> 0.5
A21: 19. Ídem, em banca de concurso para Docente temporário | D21: =1.5/6 -> 0.25
A22: 20. Participação em banca de seleção de tutoria/monitoria/mestrado/ doutorado | D22: =1/6 -> 0.1666666667
A23: Outras atividades de gestão/representação:
D24: =0.5/6 -> 0.08333333333
D25: =0.5/6 -> 0.08333333333
D26: 0.08333333333
D27: =0.5/6 -> 0.08333333333
D28: 0.08333333333
A30: PONTUAÇÃO TOTAL PREVISTA E CH SEMANAL EM ATIVIDADES DE GESTÃO E REPRESENTAÇÃO: . | E30: =IF(SUM(E3:E28)=0,"",SUM(E3:E28)) -> 
A32: INSTRUÇÕES PARA PREENCHIMENTO DAS ATIVIDADES DE GESTÃO E REPRESENTAÇÃO
A33: Obs.: 1ª. Defina, para cada item a quantidade prevista de meses dentro do período avaliativo e a carga horária semanal que pretende dedicar para a execução da atividade.
A34: 2ª. Indique o nº da Portaria (se houver) correspondente à designação da atividade de gestão/representação na coluna correspondente.
A35: 3ª. A pontuação constante na coluna "Pontuação (RCO nº 119/2025)" corresponde à pontuação de cada atividade obtida da citada Resolução, transformada em pontos por mês.
A36: 4ª. A pontuação prevista para cada item será calculada automaticamente pela planilha, através do produto do número de meses indicado na coluna "Tempo (meses) durante o período avaliativo", pela pontuação unitária mensal de cada atividade.
A37: 5ª. Caso pretenda realizar alguma atividade de gestão/representação que não esteja relacionada, acrescente nas linhas referentes a "Outras atividades de gestão/representação", salientando-se que esta(s) atividade(s) não constantes da relação deverão ser devidamente aprovadas pela Comissão Interna e homologada(s) pelo Conselho da Unidade/Campus.

Sheet RESUMO
B1: UNIVERSIDADE FEDERAL DE ALAGOAS – UFAL SECRETARIA EXECUTIVA DOS CONSELHOS SUPERIORES - SECS
B3: PLANO DE ATIVIDADES ACADÊMICAS
B4: (RCO nº 119/2025 - CONSUNI/UFAL)
B5: IDENTIFICAÇÃO DO DOCENTE
B6: Nome do docente: | C6: =IF(Identificação!C30="","",Identificação!C30) ->  | D6: =IF(Identificação!#REF!="","",Identificação!#REF!) ->  | E6: =IF(Identificação!#REF!="","",Identificação!#REF!) ->  | F6: =IF(Identificação!#REF!="","",Identificação!#REF!) ->  | G6: =IF(Identificação!#REF!="","",Identificação!#REF!) -> 
B7: Matrícula SIAPE: | C7: =IF(Identificação!J30="","",Identificação!J30) ->  | D7: Titulação atual: | G7: =IF(Identificação!C32="","",Identificação!C32) -> 
B8: Lotação: | C8: =IF(Identificação!C33="","",Identificação!C33) ->  | D8: =IF(Identificação!#REF!="","",Identificação!#REF!) ->  | E8: =IF(Identificação!#REF!="","",Identificação!#REF!) ->  | F8: =IF(Identificação!#REF!="","",Identificação!#REF!) ->  | G8: =IF(Identificação!#REF!="","",Identificação!#REF!) -> 
B9: Regime de Trabalho:: | C9: =IF(Identificação!J32="","",Identificação!J32) ->  | D9: Classe e nível atual: | E9: =IF(Identificação!D34="","",Identificação!D34) ->  | F9: =IF(Identificação!E34="","",Identificação!E34) ->  | G9: =IF(Identificação!I34="",""," Nível "&Identificação!I34) -> 
B10: Início em exercício: | C10: =IF(Identificação!J33="","",Identificação!J33) ->  | D10: Período do PAA: | E10: =IF(Identificação!E35="","",Identificação!E35) ->  | F10: a | G10: =IF(Identificação!H35="","",Identificação!H35) -> 
B11: QUADRO RESUMO | T11: Local | V11: Ano | W11: =YEAR(E10) -> 
B12: ATIVIDADE | F12: Carga Horária Semanal Prevista | G12: Pontuação Prevista | T12: Maceió / AL
B13: 1. ENSINO | F13: =IF('1. ENSINO'!I64="","",SUM('1. ENSINO'!I70,'1. ENSINO'!I75:I104)) ->  | G13: =IF('1. ENSINO'!I64="","",SUM('1. ENSINO'!I64,'1. ENSINO'!H75:H104)) ->  | T13: Arapiraca / AL
B14: 2. PRODUÇÃO INTELECTUAL | F14: =IF(SUM('2. PRODUÇÃO INTELECTUAL'!E3:E27)=0,"",SUM('2. PRODUÇÃO INTELECTUAL'!E3:E27)) ->  | G14: =IF(SUM('2. PRODUÇÃO INTELECTUAL'!D3:D27)=0,"",SUM('2. PRODUÇÃO INTELECTUAL'!D3:D27)) ->  | T14: Delmiro Gouveia / AL
B15: 3. PESQUISA | F15: =IF(SUM('3. PESQUISA'!E3:E25)=0,"",SUM('3. PESQUISA'!E3:E25)) ->  | G15: =IF(SUM('3. PESQUISA'!D3:D25)=0,"",SUM('3. PESQUISA'!D3:D25)) ->  | T15: Rio Largo / AL
B16: 4. EXTENSÃO | F16: =IF(SUM('4. EXTENSÃO'!E3:E23)=0,"",SUM('4. EXTENSÃO'!E3:E23)) ->  | G16: =IF(SUM('4. EXTENSÃO'!D3:D23)=0,"",SUM('4. EXTENSÃO'!D3:D23)) ->  | T16: Penedo / AL
B17: 5. GESTÃO/REPRESENTAÇÃO | F17: =IF(SUM('5. GESTÃO'!F3:F28)=0,"",SUM('5. GESTÃO'!F3:F28)) ->  | G17: =IF(SUM('5. GESTÃO'!E3:E28)=0,"",SUM('5. GESTÃO'!E3:E28)) ->  | T17: Palmeira dos Índios / AL
B18: TOTAL: | F18: =IF(SUM(F13:F17)=0,"",ROUND(SUM(F13:F17),0)) ->  | G18: =IF(SUM(G13:G17)=0,"",SUM(G13:G17)) ->  | T18: Santana do Ipanema / AL
B19: =IF(F18="","",IF('1. ENSINO'!I63<8,"SUA CARGA HORÁRIA SEMANAL DE MINISTRAÇÃO DE AULAS É INFERIOR A 8,0!",IF(F18<>T21,"SUA CARGA HORÁRIA SEMANAL TOTAL PREVISTA DIFERE DO SEU REGIME DE TRABALHO!",""))) ->  | T19: Viçosa / AL
B20: Local e data: | F20: =IF(C20="","",TODAY()) -> 
B21: Assinatura do docente: | C21: _____________________________________________ | T21: =IF(Identificação!J32="20 h",20,IF(Identificação!J32="40 h",40,IF(Identificação!J32="DE",40,""))) -> 
B24: Data da aprovação do Plano de Atividades Acadêmicas:
B25: Assinatura do(a) Presidente do Conselho da UA/Campus:
C26: _______________________________________
B28: INSTRUÇÕES PARA SALVAR OS PLANOS DE ATIVIDADES ACADÊMICAS
B29: 1. Verifique, inicialmente, se o PAA está devidamente preenchido, sem qualquer mensagem de ERRO;
B30: 2. Para salvar o arquivo (pasta Excel), clique no botão"Salvar Arquivo EXCEL", disponível logo abaixo dessas instruções. O arquivo será salvo no mesmo local em que foi salvo o "modelo de formulário", com o seguinte nome: "PAA-ano.xlsm", onde ano é o ano inicial do PAA. Tanto o nome como o local podem ser alterados posteriormente pelo docente;
B31: 3. Para criar o arquivo no formato PDF correspondente ao Plano a ser enviado à Secretaria da Unidade/Campus, clique no botão "Salvar PAA", disponível abaixo dessas instruções. O arquivo será salvo no mesmo local em que foi salvo o "modelo de formulário", com o seguinte nome: "PAA-ano.PDF". Tanto o nome como o local podem ser posteriormente alterados pelo docente;
B32: 4. Para preencher e salvar um novo plano, clique no botão "Criar novo Plano". Quase todos os campos de todas as planilhas serão limpos e você poderá iniciar o preenchimento de um novo PAA com alguns dados já preenchidos.
B33: 5. Após criar o Plano no formato de arquivo PDF, este deve ser assinado eletronicamente pelo docente utilizando sua conta GOV.BR. Só precisa assinar a última folha do arquivo, que contém o RESUMO das Atividades previstas.
B34: 6. Após aprovação do Plano pelo Conselho da Unidade/Campus, a Direção deve também assinar eletronicamente na última folha do arquivo e encaminhar o processo para a Secretaria que deverá arquivá-lo.
